[Event "44th Chess Olympiad Open 2022"]
[Site "Chennai"]
[Date "2022.08.08"]
[Round "10.17"]
[White "Mekhitarian, Krikor Sevag"]
[Black "Noritsyn, Nikolay"]
[Result "1-0"]
[WhiteElo "2542"]
[BlackElo "2482"]
[Annotator "RC"]
[PlyCount "87"]
[EventDate "2022.??.??"]
[TimeControl "60"]

1. d4 {[%emt 0:00:06]} e6 {[%emt 0:00:12]} 2. c4 {[%emt 0:00:14]} f5 {[%emt 0:
00:00]} 3. Nc3 {[%emt 0:01:15]} Nf6 {[%emt 0:00:12]} 4. a3 {[%emt 0:00:57]} Be7
{[%emt 0:00:47]} 5. e3 {[%emt 0:03:55]} O-O {[%emt 0:05:40]} 6. Bd3 {[%emt 0:
00:00]} c5 {[%emt 0:07:46]} 7. dxc5 {[%emt 0:19:19]} Bxc5 {[%emt 0:00:08]} 8.
b4 {[%emt 0:00:25]} Be7 {[%emt 0:00:22]} 9. Bb2 {[%emt 0:00:17]} a5 {[%emt 0:
00:00]} 10. b5 {[%emt 0:00:08]} d6 {[%emt 0:07:19]} 11. Nf3 {[%emt 0:07:16]}
Nbd7 {[%emt 0:05:18]} 12. Na4 {[%emt 0:09:43]} Ne4 {[%emt 0:14:16]} 13. Bxe4 {
[%emt 0:04:18]} fxe4 {[%emt 0:00:07]} 14. Nd2 {[%emt 0:00:02]} Nf6 {[%emt 0:00:
00]} 15. O-O {[%emt 0:03:16]} Bd7 {[%emt 0:15:38]} 16. Rc1 {[%emt 0:07:29]} d5
{[%emt 0:06:04]} 17. Qb3 {[%emt 0:02:46]} Be8 {[%emt 0:13:12]} 18. c5 {[%emt 0:
00:00]} Rc8 {[%emt 0:02:36]} 19. Bd4 {[%emt 0:00:11]} Bh5 {[%emt 0:01:03]} 20.
Nb6 {[%emt 0:02:52]} Rc7 {[%emt 0:00:29]} 21. a4 {[%emt 0:03:50]} Bf7 {[%emt 0:
00:00]} 22. Qb2 {[%emt 0:02:32]} e5 {[%emt 0:02:57]} 23. Bc3 {[%emt 0:02:43]}
Bxc5 {[%emt 0:01:59]} 24. Bxa5 {[%emt 0:00:03]} Qd6 {[%emt 0:00:42]} 25. Nxd5 {
[%emt 0:00:11]} Bxd5 {[%emt 0:00:25]} 26. Bxc7 {[%emt 0:00:18]} Qxc7 {[%emt 0:
00:00]} 27. Nb3 {[%emt 0:00:13]} b6 {[%emt 0:01:53]} 28. Nxc5 {[%emt 0:01:22]}
bxc5 {[%emt 0:00:02]} 29. b6 {[%emt 0:01:00]} Qc6 {[%emt 0:00:53]} 30. a5 {
[%emt 0:00:08]} Ra8 {[%emt 0:01:28]} 31. Ra1 {[%emt 0:00:23]} Nd7 {[%emt 0:00:
00]} 32. Rfd1 {[%emt 0:00:29]} Rb8 {[%emt 0:01:31]} 33. Qd2 {[%emt 0:01:09]}
Nf6 {[%emt 0:00:30]} 34. Qc3 {[%emt 0:00:21]} Nd7 {[%emt 0:01:49]} 35. Rd2 {
[%emt 0:00:01]} Ra8 {[%emt 0:00:43]} 36. h3 {[%emt 0:00:53]} Kf7 {[%emt 0:00:
00]} 37. Rad1 {[%emt 0:00:23]} Nf6 {[%emt 0:00:09]} 38. Rb1 {[%emt 0:02:02]}
Nd7 {[%emt 0:01:00]} 39. b7 {[%emt 0:00:35]} Rb8 {[%emt 0:00:24]} 40. a6 {
[%emt 0:01:30]} Be6 {[%emt 0:00:59]} 41. Qa5 {[%emt 0:04:06]} c4 {[%emt 0:00:
00]} 42. a7 {[%emt 0:02:58]} c3 {[%emt 0:00:28]} 43. Rxd7+ {[%emt 0:00:15]}
Qxd7 {[%emt 0:00:09]} 44. axb8=Q {[%emt 0:00:22]} 1-0

[Event "44th Chess Olympiad Open 2022"]
[Site "Chennai"]
[Date "2022.08.08"]
[Round "10.17"]
[White "Panjwani, Raja"]
[Black "Fier, Alexandr"]
[Result "1/2-1/2"]
[WhiteElo "2450"]
[BlackElo "2567"]
[Annotator "RC"]
[PlyCount "82"]
[EventDate "2022.??.??"]
[TimeControl "60"]

1. d4 {[%emt 0:00:03]} d5 {[%emt 0:00:05]} 2. c4 {[%emt 0:00:11]} e6 {[%emt 0:
00:00]} 3. Nf3 {[%emt 0:00:10]} c6 {[%emt 0:00:04]} 4. e3 {[%emt 0:00:08]} f5 {
[%emt 0:00:04]} 5. Bd3 {[%emt 0:00:21]} Nf6 {[%emt 0:00:17]} 6. O-O {[%emt 0:
00:00]} Bd6 {[%emt 0:00:04]} 7. b3 {[%emt 0:00:10]} Qe7 {[%emt 0:00:04]} 8. a4
{[%emt 0:00:09]} a5 {[%emt 0:00:17]} 9. Ba3 {[%emt 0:00:16]} Bxa3 {[%emt 0:00:
00]} 10. Nxa3 {[%emt 0:00:06]} O-O {[%emt 0:00:04]} 11. Nc2 {[%emt 0:04:14]} b6
{[%emt 0:02:01]} 12. cxd5 {[%emt 0:00:47]} exd5 {[%emt 0:06:58]} 13. Ne5 {
[%emt 0:14:50]} c5 {[%emt 0:01:59]} 14. Ne1 {[%emt 0:21:36]} Na6 {[%emt 0:00:
00]} 15. Rc1 {[%emt 0:07:18]} Nb4 {[%emt 0:01:12]} 16. Bb5 {[%emt 0:01:03]} Be6
{[%emt 0:03:48]} 17. N1d3 {[%emt 0:02:35]} Rac8 {[%emt 0:00:32]} 18. f3 {
[%emt 0:04:28]} Rc7 {[%emt 0:09:15]} 19. Qd2 {[%emt 0:12:42]} Rfc8 {[%emt 0:00:
00]} 20. Rc3 {[%emt 0:05:38]} cxd4 {[%emt 0:12:34]} 21. Rxc7 {[%emt 0:00:09]}
Qxc7 {[%emt 0:00:01]} 22. exd4 {[%emt 0:10:20]} Qc3 {[%emt 0:00:06]} 23. Qxc3 {
[%emt 0:00:16]} Rxc3 {[%emt 0:00:04]} 24. Rc1 {[%emt 0:03:25]} Na2 {[%emt 0:00:
00]} 25. Rxc3 {[%emt 0:01:13]} Nxc3 {[%emt 0:00:04]} 26. Nf4 {[%emt 0:01:51]}
Bc8 {[%emt 0:02:26]} 27. h4 {[%emt 0:02:25]} Nxb5 {[%emt 0:02:20]} 28. axb5 {
[%emt 0:00:01]} Kf8 {[%emt 0:00:07]} 29. Kf2 {[%emt 0:01:12]} Ke7 {[%emt 0:00:
00]} 30. Ne2 {[%emt 0:02:39]} Kd6 {[%emt 0:02:01]} 31. Ke3 {[%emt 0:00:42]} h6
{[%emt 0:01:00]} 32. Nc3 {[%emt 0:01:01]} Be6 {[%emt 0:00:13]} 33. Nd3 {
[%emt 0:01:33]} g5 {[%emt 0:04:39]} 34. hxg5 {[%emt 0:00:16]} hxg5 {[%emt 0:00:
00]} 35. b4 {[%emt 0:00:26]} f4+ {[%emt 0:00:04]} 36. Kd2 {[%emt 0:00:24]} axb4
{[%emt 0:03:06]} 37. Nxb4 {[%emt 0:00:07]} Bd7 {[%emt 0:00:01]} 38. Nd3 {
[%emt 0:00:48]} Nh5 {[%emt 0:00:31]} 39. Nb4 {[%emt 0:01:16]} Nf6 {[%emt 0:00:
00]} 40. Nd3 {[%emt 0:00:17]} Be8 {[%emt 0:00:03]} 41. Nb4 {[%emt 0:03:50]} Bd7
{[%emt 0:04:26]} 1/2-1/2

[Event "44th Chess Olympiad Open 2022"]
[Site "Chennai"]
[Date "2022.08.08"]
[Round "10.17"]
[White "Preotu, Razvan"]
[Black "Diamant, Andre"]
[Result "1-0"]
[WhiteElo "2445"]
[BlackElo "2538"]
[Annotator "RC"]
[PlyCount "95"]
[EventDate "2022.??.??"]
[TimeControl "60"]

1. e4 {[%emt 0:00:30]} e5 {[%emt 0:00:04]} 2. Nf3 {[%emt 0:00:23]} Nf6 {
[%emt 0:01:03]} 3. d4 {[%emt 0:00:59]} Nxe4 {[%emt 0:00:00]} 4. Bd3 {[%emt 0:
00:00]} d5 {[%emt 0:00:00]} 5. Nxe5 {[%emt 0:00:13]} Nd7 {[%emt 0:00:20]} 6.
Nxd7 {[%emt 0:02:21]} Bxd7 {[%emt 0:00:19]} 7. O-O {[%emt 0:00:33]} Bd6 {
[%emt 0:01:55]} 8. Nc3 {[%emt 0:00:22]} Nxc3 {[%emt 0:00:38]} 9. bxc3 {[%emt 0:
00:00]} O-O {[%emt 0:00:39]} 10. Qh5 {[%emt 0:00:12]} f5 {[%emt 0:01:32]} 11.
Bg5 {[%emt 0:00:47]} Qe8 {[%emt 0:01:37]} 12. Qf3 {[%emt 0:00:18]} c6 {[%emt 0:
00:00]} 13. Rfe1 {[%emt 0:10:56]} Qg6 {[%emt 0:00:51]} 14. Bf4 {[%emt 0:02:32]}
Rae8 {[%emt 0:01:25]} 15. a4 {[%emt 0:00:23]} b6 {[%emt 0:07:44]} 16. h4 {
[%emt 0:06:19]} Bxf4 {[%emt 0:15:49]} 17. Qxf4 {[%emt 0:00:08]} Qg4 {[%emt 0:
00:00]} 18. Qd6 {[%emt 0:14:19]} f4 {[%emt 0:47:12]} 19. Rxe8 {[%emt 0:01:42]}
Rxe8 {[%emt 0:00:49]} 20. f3 {[%emt 0:00:29]} Qe6 {[%emt 0:00:17]} 21. Qxf4 {
[%emt 0:00:21]} a5 {[%emt 0:02:28]} 22. Rb1 {[%emt 0:23:56]} c5 {[%emt 0:00:37]
} 23. c4 {[%emt 0:19:23]} dxc4 {[%emt 0:00:36]} 24. d5 {[%emt 0:00:09]} Qe3+ {
[%emt 0:00:45]} 25. Qxe3 {[%emt 0:00:06]} Rxe3 {[%emt 0:00:04]} 26. Kf2 {
[%emt 0:06:24]} cxd3 {[%emt 0:01:02]} 27. Kxe3 {[%emt 0:00:10]} dxc2 {[%emt 0:
00:00]} 28. Re1 {[%emt 0:00:05]} Bxa4 {[%emt 0:00:34]} 29. Kd2 {[%emt 0:00:37]}
b5 {[%emt 0:00:35]} 30. d6 {[%emt 0:01:15]} b4 {[%emt 0:00:04]} 31. Ra1 {
[%emt 0:01:03]} Bd7 {[%emt 0:01:10]} 32. Rxa5 {[%emt 0:00:11]} Kf7 {[%emt 0:00:
00]} 33. Rxc5 {[%emt 0:00:21]} b3 {[%emt 0:00:07]} 34. Re5 {[%emt 0:00:16]} Be6
{[%emt 0:00:34]} 35. g4 {[%emt 0:02:11]} Kf6 {[%emt 0:00:25]} 36. Re1 {[%emt 0:
00:00]} h6 {[%emt 0:00:21]} 37. g5+ {[%emt 0:00:38]} hxg5 {[%emt 0:00:44]} 38.
hxg5+ {[%emt 0:00:05]} Kf7 {[%emt 0:00:21]} 39. Kc1 {[%emt 0:00:19]} Bf5 {
[%emt 0:00:45]} 40. Re7+ {[%emt 0:00:23]} Kf8 {[%emt 0:00:23]} 41. Re5 {
[%emt 0:30:18]} Bd7 {[%emt 0:30:28]} 42. g6 {[%emt 0:00:14]} Bc6 {[%emt 0:00:
00]} 43. f4 {[%emt 0:00:00]} Bd7 {[%emt 0:00:00]} 44. Ra5 {[%emt 0:00:00]} Bc6
{[%emt 0:00:00]} 45. Rc5 {[%emt 0:00:00]} Bd7 {[%emt 0:00:00]} 46. Rh5 {
[%emt 0:00:00]} Kg8 {[%emt 0:00:00]} 47. Ra5 {[%emt 0:00:00]} Be8 {[%emt 0:00:
00]} 48. Ra8 {[%emt 0:00:00]} 1-0

[Event "44th Chess Olympiad Open 2022"]
[Site "Chennai"]
[Date "2022.08.08"]
[Round "10.18"]
[White "Lupulescu, Constantin"]
[Black "Docx, Stefan"]
[Result "1/2-1/2"]
[WhiteElo "2628"]
[BlackElo "2434"]
[Annotator "RC"]
[PlyCount "79"]
[EventDate "2022.??.??"]
[TimeControl "60"]

1. d4 {[%emt 0:00:03]} Nf6 {[%emt 0:00:09]} 2. c4 {[%emt 0:00:03]} g6 {[%emt 0:
00:00]} 3. Nc3 {[%emt 0:00:31]} Bg7 {[%emt 0:00:35]} 4. e4 {[%emt 0:00:18]} d6
{[%emt 0:00:08]} 5. Nf3 {[%emt 0:02:58]} O-O {[%emt 0:00:16]} 6. Be2 {[%emt 0:
00:00]} e5 {[%emt 0:00:10]} 7. d5 {[%emt 0:00:29]} a5 {[%emt 0:00:31]} 8. Bg5 {
[%emt 0:02:55]} h6 {[%emt 0:01:11]} 9. Be3 {[%emt 0:00:54]} Ng4 {[%emt 0:02:10]
} 10. Bd2 {[%emt 0:01:23]} f5 {[%emt 0:00:13]} 11. h3 {[%emt 0:09:35]} Nf6 {
[%emt 0:00:47]} 12. exf5 {[%emt 0:00:11]} gxf5 {[%emt 0:00:21]} 13. Qc2 {
[%emt 0:02:01]} Na6 {[%emt 0:01:47]} 14. O-O-O {[%emt 0:01:25]} Nb4 {[%emt 0:
00:00]} 15. Qb1 {[%emt 0:03:33]} Ne4 {[%emt 0:00:22]} 16. Be1 {[%emt 0:06:52]}
Nc5 {[%emt 0:02:40]} 17. Nd2 {[%emt 0:09:59]} Qg5 {[%emt 0:03:48]} 18. g3 {
[%emt 0:05:05]} e4 {[%emt 0:00:12]} 19. h4 {[%emt 0:00:16]} Qe7 {[%emt 0:07:24]
} 20. Nb3 {[%emt 0:01:37]} Ncd3+ {[%emt 0:02:02]} 21. Bxd3 {[%emt 0:00:15]}
Nxd3+ {[%emt 0:00:04]} 22. Rxd3 {[%emt 0:00:05]} exd3 {[%emt 0:00:10]} 23. Qxd3
{[%emt 0:01:22]} f4 {[%emt 0:01:37]} 24. Nd4 {[%emt 0:03:27]} fxg3 {[%emt 0:00:
00]} 25. fxg3 {[%emt 0:01:54]} Qe5 {[%emt 0:02:50]} 26. Nce2 {[%emt 0:10:36]}
Bg4 {[%emt 0:08:30]} 27. Bc3 {[%emt 0:00:00]} Rae8 {[%emt 0:02:13]} 28. Nf4 {
[%emt 0:00:00]} Rxf4 {[%emt 0:25:50]} 29. gxf4 {[%emt 0:01:35]} Qxf4+ {[%emt 0:
00:00]} 30. Kc2 {[%emt 0:10:28]} Re3 {[%emt 0:13:38]} 31. Qg6 {[%emt 0:06:33]}
Qe4+ {[%emt 0:06:24]} 32. Qxe4 {[%emt 0:00:32]} Rxe4 {[%emt 0:00:02]} 33. Kd3 {
[%emt 0:00:23]} Rf4 {[%emt 0:00:55]} 34. Ke3 {[%emt 0:07:30]} Be5 {[%emt 0:00:
00]} 35. b3 {[%emt 0:05:47]} h5 {[%emt 0:01:52]} 36. Ba1 {[%emt 0:00:43]} Kf7 {
[%emt 0:01:05]} 37. Nb5 {[%emt 0:00:43]} Rf3+ {[%emt 0:00:09]} 38. Ke4 {
[%emt 0:01:04]} Rf4+ {[%emt 0:00:36]} 39. Ke3 {[%emt 0:00:41]} Rf3+ {[%emt 0:
00:00]} 40. Ke4 {[%emt 0:00:11]} 1/2-1/2

[Event "44th Chess Olympiad Open 2022"]
[Site "Chennai"]
[Date "2022.08.08"]
[Round "10.18"]
[White "Jianu, Vlad-Cristian"]
[Black "Lenaerts, Lennert"]
[Result "1/2-1/2"]
[WhiteElo "2511"]
[BlackElo "2379"]
[Annotator "RC"]
[PlyCount "45"]
[EventDate "2022.??.??"]
[TimeControl "60"]

1. d4 {[%emt 0:00:03]} d5 {[%emt 0:00:15]} 2. c4 {[%emt 0:00:06]} c6 {[%emt 0:
00:00]} 3. Nc3 {[%emt 0:00:12]} Nf6 {[%emt 0:01:17]} 4. e3 {[%emt 0:00:09]} Bf5
{[%emt 0:00:31]} 5. Nf3 {[%emt 0:02:36]} e6 {[%emt 0:00:58]} 6. Nh4 {[%emt 0:
00:00]} Be4 {[%emt 0:00:11]} 7. f3 {[%emt 0:00:46]} Bg6 {[%emt 0:00:05]} 8.
Nxg6 {[%emt 0:00:29]} hxg6 {[%emt 0:00:09]} 9. Qb3 {[%emt 0:00:05]} Qc7 {
[%emt 0:01:09]} 10. Bd2 {[%emt 0:00:04]} Be7 {[%emt 0:00:40]} 11. cxd5 {
[%emt 0:00:45]} cxd5 {[%emt 0:00:14]} 12. O-O-O {[%emt 0:00:06]} Nc6 {[%emt 0:
00:00]} 13. Kb1 {[%emt 0:00:51]} a6 {[%emt 0:00:08]} 14. Rc1 {[%emt 0:00:04]}
Nd7 {[%emt 0:00:07]} 15. Bd3 {[%emt 0:00:33]} Na5 {[%emt 0:00:15]} 16. Qc2 {
[%emt 0:00:26]} Nc4 {[%emt 0:00:12]} 17. e4 {[%emt 0:00:53]} dxe4 {[%emt 0:00:
00]} 18. Bxc4 {[%emt 0:02:44]} Qxc4 {[%emt 0:00:12]} 19. Qxe4 {[%emt 0:00:05]}
Rb8 {[%emt 0:00:08]} 20. Ne2 {[%emt 0:38:12]} Qb5 {[%emt 0:18:01]} 21. Nc3 {
[%emt 0:00:09]} Qc4 {[%emt 0:00:54]} 22. Ne2 {[%emt 0:00:06]} Qb5 {[%emt 0:00:
00]} 23. Nc3 {[%emt 0:00:08]} 1/2-1/2

[Event "44th Chess Olympiad Open 2022"]
[Site "Chennai"]
[Date "2022.08.08"]
[Round "10.18"]
[White "Maerevoet, Sim"]
[Black "Parligras, Mircea-Emilian"]
[Result "1-0"]
[WhiteElo "2409"]
[BlackElo "2576"]
[Annotator "RC"]
[PlyCount "51"]
[EventDate "2022.??.??"]
[TimeControl "60"]

1. e4 {[%emt 0:00:03]} c5 {[%emt 0:00:21]} 2. Nf3 {[%emt 0:00:08]} d6 {[%emt 0:
00:00]} 3. Bb5+ {[%emt 0:00:22]} Nd7 {[%emt 0:00:08]} 4. O-O {[%emt 0:00:08]}
a6 {[%emt 0:00:08]} 5. Bxd7+ {[%emt 0:00:32]} Bxd7 {[%emt 0:00:07]} 6. c3 {
[%emt 0:00:08]} Nf6 {[%emt 0:01:25]} 7. Re1 {[%emt 0:00:04]} Bc6 {[%emt 0:00:
00]} 8. d4 {[%emt 0:00:16]} cxd4 {[%emt 0:00:28]} 9. cxd4 {[%emt 0:02:06]} Bxe4
{[%emt 0:00:09]} 10. Nc3 {[%emt 0:04:51]} Bxf3 {[%emt 0:00:35]} 11. Qxf3 {
[%emt 0:00:09]} e6 {[%emt 0:00:07]} 12. Qxb7 {[%emt 0:05:05]} Qc8 {[%emt 0:00:
00]} 13. Qf3 {[%emt 0:02:46]} Be7 {[%emt 0:00:37]} 14. Bg5 {[%emt 0:07:40]} O-O
{[%emt 0:01:09]} 15. d5 {[%emt 0:02:00]} e5 {[%emt 0:01:33]} 16. Ne4 {[%emt 0:
00:00]} Nxe4 {[%emt 0:29:18]} 17. Bxe7 {[%emt 0:00:30]} Re8 {[%emt 0:00:03]}
18. Qxe4 {[%emt 0:03:34]} Rxe7 {[%emt 0:00:09]} 19. Rac1 {[%emt 0:00:25]} Qb7 {
[%emt 0:05:55]} 20. b3 {[%emt 0:01:54]} a5 {[%emt 0:03:56]} 21. Rc4 {[%emt 0:
00:00]} f5 {[%emt 0:11:45]} 22. Qxf5 {[%emt 0:05:04]} Qxd5 {[%emt 0:00:05]} 23.
Rc8+ {[%emt 0:02:20]} Re8 {[%emt 0:04:47]} 24. Rc7 {[%emt 0:00:34]} Rf8 {
[%emt 0:01:40]} 25. Qg4 {[%emt 0:01:32]} Rf7 {[%emt 0:05:36]} 26. Rd1 {[%emt 0:
00:00]} 1-0

[Event "44th Chess Olympiad Open 2022"]
[Site "Chennai"]
[Date "2022.08.08"]
[Round "10.19"]
[White "Andersen, Mads"]
[Black "Avila Pavas, Santiago"]
[Result "1-0"]
[WhiteElo "2587"]
[BlackElo "2453"]
[Annotator "RC"]
[PlyCount "105"]
[EventDate "2022.??.??"]
[TimeControl "60"]

1. e4 {[%emt 0:00:09]} c6 {[%emt 0:00:07]} 2. Nf3 {[%emt 0:00:15]} d5 {[%emt 0:
00:00]} 3. Nc3 {[%emt 0:00:11]} Bg4 {[%emt 0:00:11]} 4. h3 {[%emt 0:00:07]}
Bxf3 {[%emt 0:00:10]} 5. Qxf3 {[%emt 0:00:07]} e6 {[%emt 0:00:09]} 6. Be2 {
[%emt 0:01:24]} Nf6 {[%emt 0:01:49]} 7. O-O {[%emt 0:00:37]} Nbd7 {[%emt 0:00:
00]} 8. d4 {[%emt 0:02:47]} dxe4 {[%emt 0:01:16]} 9. Nxe4 {[%emt 0:00:24]} Nxe4
{[%emt 0:01:10]} 10. Qxe4 {[%emt 0:00:03]} Nf6 {[%emt 0:00:12]} 11. Qe3 {
[%emt 0:03:40]} Be7 {[%emt 0:02:53]} 12. Rd1 {[%emt 0:06:05]} O-O {[%emt 0:00:
00]} 13. a4 {[%emt 0:06:06]} a5 {[%emt 0:05:23]} 14. Qb3 {[%emt 0:00:27]} Qc7 {
[%emt 0:00:13]} 15. g3 {[%emt 0:00:13]} h6 {[%emt 0:09:06]} 16. Bf3 {[%emt 0:
00:00]} Rad8 {[%emt 0:00:07]} 17. Kg2 {[%emt 0:01:03]} Rd7 {[%emt 0:02:00]} 18.
c3 {[%emt 0:09:07]} Rfd8 {[%emt 0:08:18]} 19. Re1 {[%emt 0:00:23]} Bd6 {
[%emt 0:16:26]} 20. Re2 {[%emt 0:05:29]} Re7 {[%emt 0:10:58]} 21. Be3 {[%emt 0:
00:00]} Nd5 {[%emt 0:10:17]} 22. Bd2 {[%emt 0:00:18]} e5 {[%emt 0:00:30]} 23.
c4 {[%emt 0:15:10]} e4 {[%emt 0:17:38]} 24. Bxe4 {[%emt 0:06:34]} Nf6 {[%emt 0:
00:00]} 25. Rae1 {[%emt 0:00:37]} Rde8 {[%emt 0:00:45]} 26. Qd3 {[%emt 0:04:33]
} Qd8 {[%emt 0:01:59]} 27. Bf3 {[%emt 0:02:41]} Rxe2 {[%emt 0:02:20]} 28. Rxe2
{[%emt 0:00:15]} Rxe2 {[%emt 0:00:31]} 29. Qxe2 {[%emt 0:00:27]} Kf8 {[%emt 0:
00:00]} 30. Qd3 {[%emt 0:04:04]} Bb4 {[%emt 0:02:04]} 31. Be3 {[%emt 0:03:17]}
Qd6 {[%emt 0:00:26]} 32. Qf5 {[%emt 0:02:32]} Qd7 {[%emt 0:00:33]} 33. Qc2 {
[%emt 0:00:28]} Qd6 {[%emt 0:00:29]} 34. Kg1 {[%emt 0:09:19]} Qd7 {[%emt 0:00:
00]} 35. Bg2 {[%emt 0:00:10]} Qd6 {[%emt 0:00:13]} 36. Qf5 {[%emt 0:00:25]} Qd7
{[%emt 0:00:07]} 37. Qf3 {[%emt 0:00:21]} Qd6 {[%emt 0:00:25]} 38. Bf1 {
[%emt 0:01:16]} Qe6 {[%emt 0:00:27]} 39. Kh2 {[%emt 0:01:04]} Ne4 {[%emt 0:00:
00]} 40. Bd3 {[%emt 0:03:49]} Ng5 {[%emt 0:00:49]} 41. Qh5 {[%emt 0:32:25]} Qf6
{[%emt 0:07:47]} 42. Kg2 {[%emt 0:00:00]} Qd6 {[%emt 0:07:46]} 43. Bf5 {
[%emt 0:00:00]} Ne6 {[%emt 0:06:45]} 44. Qg4 {[%emt 0:00:00]} Nd8 {[%emt 0:00:
00]} 45. h4 {[%emt 0:00:00]} Qc7 {[%emt 0:00:54]} 46. c5 {[%emt 0:00:00]} Qe7 {
[%emt 0:02:32]} 47. Bf4 {[%emt 0:00:00]} Qe8 {[%emt 0:03:34]} 48. Bh7 {[%emt 0:
00:00]} Qe6 {[%emt 0:00:20]} 49. Bd6+ {[%emt 0:00:00]} Ke8 {[%emt 0:00:04]} 50.
Qxg7 {[%emt 0:00:00]} Kd7 {[%emt 0:01:13]} 51. Qf8 {[%emt 0:00:00]} Qe8 {
[%emt 0:00:09]} 52. Bf5+ {[%emt 0:00:00]} Ne6 {[%emt 0:00:07]} 53. Qxh6 {
[%emt 0:00:00]} 1-0

[Event "44th Chess Olympiad Open 2022"]
[Site "Chennai"]
[Date "2022.08.08"]
[Round "10.19"]
[White "Cardoso Cardoso, Jose Gabriel"]
[Black "Bjerre, Jonas Buhl"]
[Result "0-1"]
[WhiteElo "2493"]
[BlackElo "2608"]
[Annotator "RC"]
[PlyCount "88"]
[EventDate "2022.??.??"]
[TimeControl "60"]

1. d4 {[%emt 0:00:07]} Nf6 {[%emt 0:00:10]} 2. c4 {[%emt 0:00:13]} e6 {[%emt 0:
00:00]} 3. Nc3 {[%emt 0:00:13]} Bb4 {[%emt 0:00:10]} 4. Qc2 {[%emt 0:00:10]} d5
{[%emt 0:01:09]} 5. a3 {[%emt 0:00:26]} Bxc3+ {[%emt 0:00:46]} 6. Qxc3 {
[%emt 0:00:04]} O-O {[%emt 0:01:03]} 7. e3 {[%emt 0:00:09]} b6 {[%emt 0:01:30]}
8. Nf3 {[%emt 0:00:06]} Bb7 {[%emt 0:01:00]} 9. b3 {[%emt 0:00:10]} Nbd7 {
[%emt 0:04:22]} 10. Bb2 {[%emt 0:02:01]} c5 {[%emt 0:04:00]} 11. Be2 {[%emt 0:
00:00]} Rc8 {[%emt 0:04:51]} 12. a4 {[%emt 0:08:29]} Ne4 {[%emt 0:15:48]} 13.
Qd3 {[%emt 0:04:58]} dxc4 {[%emt 0:11:48]} 14. bxc4 {[%emt 0:00:23]} cxd4 {
[%emt 0:08:24]} 15. exd4 {[%emt 0:05:45]} Qf6 {[%emt 0:05:59]} 16. O-O {
[%emt 0:02:30]} Rfd8 {[%emt 0:01:35]} 17. Rfc1 {[%emt 0:14:01]} Nf8 {[%emt 0:
00:00]} 18. a5 {[%emt 0:08:50]} Ng6 {[%emt 0:01:58]} 19. axb6 {[%emt 0:00:37]}
axb6 {[%emt 0:01:32]} 20. Rab1 {[%emt 0:10:01]} Nf4 {[%emt 0:04:46]} 21. Qe3 {
[%emt 0:00:06]} Ng5 {[%emt 0:03:36]} 22. Nxg5 {[%emt 0:06:14]} Qxg5 {[%emt 0:
00:00]} 23. Bf3 {[%emt 0:00:25]} Bxf3 {[%emt 0:01:26]} 24. Qxf3 {[%emt 0:02:17]
} h5 {[%emt 0:02:33]} 25. g3 {[%emt 0:06:59]} Ng6 {[%emt 0:00:58]} 26. Qe4 {
[%emt 0:00:45]} h4 {[%emt 0:01:20]} 27. Rc2 {[%emt 0:04:07]} h3 {[%emt 0:02:24]
} 28. Bc1 {[%emt 0:02:08]} Qa5 {[%emt 0:01:55]} 29. Be3 {[%emt 0:00:18]} Qa4 {
[%emt 0:00:55]} 30. Rbc1 {[%emt 0:00:39]} Rd7 {[%emt 0:01:33]} 31. Qg4 {
[%emt 0:09:31]} b5 {[%emt 0:01:09]} 32. c5 {[%emt 0:02:10]} Ne5 {[%emt 0:01:48]
} 33. Qxh3 {[%emt 0:00:03]} Nd3 {[%emt 0:00:58]} 34. c6 {[%emt 0:03:51]} Rdc7 {
[%emt 0:01:19]} 35. Rc5 {[%emt 0:01:06]} Nxc1 {[%emt 0:02:29]} 36. Rh5 {
[%emt 0:00:07]} Qd1+ {[%emt 0:00:26]} 37. Kg2 {[%emt 0:00:03]} f5 {[%emt 0:00:
00]} 38. Bxc1 {[%emt 0:01:36]} Qxc1 {[%emt 0:01:03]} 39. Rh8+ {[%emt 0:00:11]}
Kf7 {[%emt 0:00:04]} 40. Qh5+ {[%emt 0:00:23]} Kf6 {[%emt 0:01:24]} 41. d5 {
[%emt 0:30:37]} exd5 {[%emt 0:06:31]} 42. Qh4+ {[%emt 0:00:00]} Qg5 {[%emt 0:
00:00]} 43. Qd4+ {[%emt 0:00:00]} Kg6 {[%emt 0:00:46]} 44. h4 {[%emt 0:00:00]}
Qf6 {[%emt 0:02:09]} 0-1